fUST/lending_fUST_20240421
["ID","MTS","AMOUNT","RATE_DAILY","PERIOD"]
[323115885,1713679176477,474.60169326,0.00021,2]
[323115886,1713679187746,319.6690279,0.00020555,2]
[323115887,1713679188274,161.96145842,0.00021,2]
[323115888,1713679191685,564.30547091,0.00021,2]
[323115889,1713679197170,603.12026337,0.00021,2]
[323115890,1713679200976,300.0,0.00021,2]
[323115891,1713679207140,300.0,0.00021,2]
[323115892,1713679226077,188.242622,0.00020555,2]
[323115893,1713679260498,300.0,0.00021,2]
[323115894,1713679264219,300.0,0.00021,2]
[323115895,1713679269812,1877.41559284,0.00021,2]
[323115896,1713679284484,548.88603804,0.00019816,2]
[323115897,1713679320745,300.0,0.00021,2]
[323115898,1713679322216,300.0,0.00021,2]
[323115899,1713679325202,168.026845,0.00020298,2]
[323115901,1713679331419,233.13946749,0.00021,2]
[323115902,1713679334052,6925.8273931,0.00021,2]
[323115903,1713679338420,6925.8273931,0.00021,2]
[323115904,1713679380686,300.0,0.00021,2]
[323115905,1713679382985,300.0,0.00021,2]
[323115906,1713679383397,930.0,0.00024373,35]
[323115907,1713679388001,930.0,0.00024363,35]
[323115908,1713679388577,930.0,0.00024353,35]
[323115909,1713679394080,179.52083429,0.00020901,2]
[323115910,1713679419945,283.22889167,0.00021,2]
[323115911,1713679440831,300.0,0.00021,2]
[323115912,1713679446941,300.0,0.00021,2]
[323115927,1713679476436,6515.33430935,0.00021,2]
[323115928,1713679500493,300.0,0.00021,2]
[323115929,1713679502769,300.0,0.00021,2]
[323115930,1713679554795,277.86971771,0.00021,2]
[323115931,1713679560551,300.0,0.00021,2]
[323115932,1713679565136,300.0,0.00021,2]
[323115933,1713679586245,365.92402536,0.000189,2]
[323115934,1713679612376,514.20361327,0.00021,2]
[323115935,1713679620543,300.0,0.00021,2]
[323115936,1713679621401,250.0,0.00020616,2]
[323115937,1713679624995,300.0,0.00021,2]
[323115938,1713679680611,300.0,0.00021,2]
[323115939,1713679683671,300.0,0.00021,2]
[323115940,1713679692470,154.84515485,0.00021,2]
[323115941,1713679740594,300.0,0.00021,2]
[323115942,1713679742379,300.0,0.00021,2]
[323115947,1713679765126,541.03177568,0.00021,2]
[323115948,1713679767451,283.986031,0.0002062,2]
[323115949,1713679784591,179.52083429,0.00020901,2]
[323115951,1713679800625,300.0,0.00021,2]
[323115952,1713679802314,300.0,0.00021,2]
[323116025,1713679838241,-689.18930425,0.00021001,2]
[323116026,1713679838251,-1574.80822451,0.00021001,2]
[323116027,1713679838292,-6289.07013016,0.00021001,2]
[323116028,1713679838302,-2098.69136625,0.00021001,2]
[323116029,1713679838310,-539.63707301,0.00021001,2]
[323116030,1713679838319,-154.84515485,0.00021001,2]
[323116031,1713679838328,-2586.79174796,0.00021001,2]
[323116032,1713679838338,-154.84515485,0.00021001,2]
[323116033,1713679838347,-31285.28113,0.00021001,2]
[323116034,1713679838356,-468.2653797,0.00021001,2]
[323116035,1713679838365,-154.84515485,0.00021001,2]
[323116036,1713679838374,-1090.08472256,0.00021001,2]
[323116037,1713679838383,-526.14121076,0.00021001,2]
[323116038,1713679838392,-1394.09356782,0.00021001,2]
[323116039,1713679838401,-243.68424247,0.00021001,2]
[323116040,1713679838410,-241.42272,0.00021001,2]
[323116041,1713679838419,-308.38118196,0.00021001,2]
[323116042,1713679838428,-194.60384712,0.00021001,2]
[323116043,1713679838437,-1311.22668928,0.00021001,2]
[323116044,1713679838451,-154.84515485,0.00021001,2]
[323116045,1713679838461,-247.12439728,0.00021001,2]
[323116046,1713679838470,-1550.19478705,0.00021001,2]
[323116047,1713679838480,-247.48191632,0.00021001,2]
[323116048,1713679838491,-158.55732008,0.00021001,2]
[323116049,1713679838502,-204.55420506,0.00021001,2]
[323116050,1713679838511,-189.12046412,0.00021001,2]
[323116051,1713679838522,-7082.81395945,0.00021001,2]
[323116052,1713679838532,-294.17186769,0.00021001,2]
[323116053,1713679838542,-1489.75322658,0.00021001,2]
[323116054,1713679838551,-5799.27009605,0.00021001,2]
[323116055,1713679838561,-193.52697819,0.00021001,2]
[323116056,1713679838570,-354.6718789,0.00021001,2]
[323116057,1713679838579,-2774.01551629,0.00021001,2]
[323116058,1713679838588,-247.73185653,0.00021002,2]
[323116059,1713679838597,-330.77216717,0.00021002,2]
[323116060,1713679838606,-155.5838698,0.00021002,2]
[323116061,1713679838615,-524.34789262,0.00021011,4]
[323116062,1713679838624,-155.5724487,0.00021012,2]
[323116063,1713679838634,-159.34921895,0.00021012,2]
[323116064,1713679838643,-160.33343373,0.00021012,2]
[323116065,1713679838652,-377.93002717,0.00021012,2]
[323116066,1713679838661,-615.29182182,0.00021012,2]
[323116067,1713679838670,-154.84515485,0.00021013,2]
[323116068,1713679838679,-883.42675349,0.00021017,2]
[323116069,1713679838688,-3354.91138848,0.00021023,2]
[323116070,1713679838697,-154.84515485,0.00021698,2]
[323116071,1713679838706,-468.20674403,0.00021699,2]
[323116072,1713679838716,-168.05571198,0.0002178,2]
[323116073,1713679838725,-153.0,0.000218,2]
[323116074,1713679838734,-153.0,0.000218,2]
[323116075,1713679838742,-153.0,0.000218,2]
[323116076,1713679838752,-153.0,0.000218,2]
[323116077,1713679838761,-155.3749949,0.000218,2]
[323116078,1713679838769,-153.0,0.000218,2]
[323116079,1713679838778,-153.0,0.000218,2]
[323116080,1713679838787,-179.52083429,0.00021814,2]
[323116081,1713679838797,-417.0,0.00021844,2]
[323116082,1713679838806,-161.94443373,0.0002189,2]
[323116083,1713679838815,-784.09852565,0.00021891,2]
[323116084,1713679838857,-153.0,0.000219,2]
[323116085,1713679838866,-306.0,0.000219,2]
[323116086,1713679838875,-153.0,0.000219,2]
[323116087,1713679838884,-153.0,0.000219,2]
[323116088,1713679838893,-153.0,0.000219,2]
[323116089,1713679838903,-153.0,0.000219,2]
[323116090,1713679838912,-203.4958838,0.000219,2]
[323116091,1713679838921,-153.0,0.000219,2]
[323116092,1713679838930,-153.0,0.000219,2]
[323116093,1713679838939,-153.0,0.000219,2]
[323116094,1713679838948,-153.0,0.000219,2]
[323116095,1713679838957,-153.0,0.000219,2]
[323116096,1713679838966,-306.7405502,0.000219,2]
[323116097,1713679838975,-153.0,0.000219,2]
[323116098,1713679838985,-153.0,0.000219,2]
[323116099,1713679838994,-153.0,0.000219,2]
[323116100,1713679839003,-153.0,0.000219,2]
[323116101,1713679839012,-153.0,0.000219,2]
[323116102,1713679839021,-377.63825265,0.0002191,2]
[323116103,1713679839030,-409.44911589,0.0002191,2]
[323116104,1713679839039,-473.7390703,0.0002191,2]
[323116105,1713679839049,-276.61132228,0.0002191,2]
[323116106,1713679839059,-259.70083876,0.0002191,2]
[323116107,1713679839068,-306.61585956,0.0002191,2]
[323116108,1713679839077,-417.73261825,0.0002191,2]
[323116109,1713679839086,-1148.22881317,0.0002191,2]
[323116110,1713679839096,-259.68358316,0.0002191,2]
[323116111,1713679839105,-278.28592222,0.0002191,2]
[323116112,1713679839114,-155.23052291,0.0002191,2]
[323116113,1713679839123,-197.54540124,0.00021911,2]
[323116114,1713679839132,-204.39115608,0.00021911,2]
[323116115,1713679839141,-234.1221445,0.00021911,2]
[323116116,1713679839150,-155.08216337,0.00021911,2]
[323116117,1713679839159,-155.45888017,0.00021911,2]
[323116118,1713679839168,-156.36272035,0.00021911,2]
[323116119,1713679839178,-167.47944015,0.00021911,2]
[323116120,1713679839188,-155.47377049,0.00021911,2]
[323116121,1713679839197,-155.58264086,0.00021911,2]
[323116122,1713679839206,-155.07660359,0.00021911,2]
[323116123,1713679839215,-155.07042903,0.00021911,2]
[323116124,1713679839224,-154.84515485,0.00021911,2]
[323116125,1713679839233,-677.78192917,0.00021911,2]
[323116126,1713679839243,-674.66776671,0.00021911,2]
[323116127,1713679839253,-155.26578762,0.00021911,2]
[323116128,1713679839263,-665.64253197,0.00021911,2]
[323116129,1713679839272,-944.49302717,0.00021911,2]
[323116130,1713679839281,-199.96958124,0.00021912,2]
[323116131,1713679839291,-218.60544592,0.00021912,2]
[323116132,1713679839300,-68668.58654547,0.00021912,2]
[323116133,1713679839310,-155.22272,0.00021913,2]
[323116134,1713679839319,-157.5375994,0.00021913,2]
[323116135,1713679839328,-272.37935465,0.00021913,2]
[323116136,1713679839337,-212.48070635,0.00021913,2]
[323116137,1713679839346,-155.09215639,0.00021913,2]
[323116138,1713679839356,-521.10599486,0.00021913,2]
[323116139,1713679839367,-79978.21508535,0.00021913,2]
[323116140,1713679839376,-30835.31474603,0.00021914,2]
[323116141,1713679839385,-297.07082901,0.00021916,2]
[323116142,1713679839396,-234.56449185,0.00021916,2]
[323116143,1713679839406,-500.0,0.00021917,2]
[323116144,1713679839415,-500.0,0.00021917,2]
[323116145,1713679839424,-500.0,0.00021917,2]
[323116146,1713679839434,-593.98005266,0.00021917,2]
[323116147,1713679839445,-600.82,0.00021917,2]
[323116148,1713679839454,-500.0,0.00021917,2]
[323116149,1713679839463,-500.0,0.00021917,2]
[323116150,1713679839473,-500.0,0.00021917,2]
[323116151,1713679839482,-500.0,0.00021917,2]
[323116152,1713679839495,-151.0,0.00021917,2]
[323116153,1713679839506,-151.0,0.00021917,2]
[323116154,1713679839515,-500.0,0.00021917,2]
[323116155,1713679839526,-173.465923,0.00021917,2]
[323116156,1713679839536,-500.0,0.00021917,2]
[323116157,1713679839546,-1463.78,0.00021917,2]
[323116158,1713679839557,-208.47440961,0.00021917,2]
[323116159,1713679839567,-193.23213698,0.00021917,2]
[323116160,1713679839576,-504.47375358,0.00021917,2]
[323116161,1713679839586,-316.37896472,0.00021917,2]
[323116162,1713679839596,-500.0,0.00021917,2]
[323116163,1713679839606,-500.0,0.00021917,2]
[323116164,1713679839616,-501.04089288,0.00021917,2]
[323116165,1713679839625,-808.13,0.00021917,2]
[323116166,1713679839636,-500.0,0.00021917,2]
[323116167,1713679839647,-500.0,0.00021917,2]
[323116169,1713679839657,-2897.85,0.00021917,2]
[323116170,1713679839667,-500.0,0.00021917,2]
[323116172,1713679839676,-151.0,0.00021917,2]
[323116173,1713679839686,-151.0,0.00021917,2]
[323116174,1713679839695,-151.0,0.00021917,2]
[323116175,1713679839705,-501.44294445,0.00021917,2]
[323116177,1713679839714,-500.0,0.00021917,2]
[323116179,1713679839723,-502.84949256,0.00021917,2]
[323116181,1713679839732,-500.0,0.00021917,2]
[323116183,1713679839741,-500.0,0.00021917,2]
[323116185,1713679839750,-500.0,0.00021917,2]
[323116187,1713679839761,-500.0,0.00021917,2]
[323116189,1713679839770,-500.0,0.00021917,2]
[323116198,1713679839876,-502.52269804,0.00021917,2]
[323116199,1713679839886,-861.68,0.00021917,2]
[323116200,1713679839894,-500.0,0.00021917,2]
[323116201,1713679839904,-500.0,0.00021917,2]
[323116202,1713679839914,-507.19889557,0.00021917,2]
[323116203,1713679839923,-500.0,0.00021917,2]
[323116204,1713679839933,-151.0,0.00021917,2]
[323116205,1713679839942,-151.0,0.00021917,2]
[323116206,1713679839950,-500.0,0.00021917,2]
[323116207,1713679839959,-500.0,0.00021917,2]
[323116208,1713679839968,-500.0,0.00021917,2]
[323116209,1713679839977,-500.0,0.00021917,2]
[323116210,1713679839986,-500.0,0.00021917,2]
[323116211,1713679839994,-500.0,0.00021917,2]
[323116212,1713679840004,-500.0,0.00021917,2]
[323116213,1713679840013,-500.0,0.00021917,2]
[323116214,1713679840022,-324.93651071,0.00021917,2]
[323116215,1713679840031,-500.0,0.00021917,2]
[323116216,1713679840039,-500.0,0.00021917,2]
[323116217,1713679840048,-424.7138064,0.00021917,2]
[323116218,1713679840057,-500.0,0.00021917,2]
[323116219,1713679840066,-428.24751003,0.00021917,2]
[323116220,1713679840074,-515.38583008,0.00021917,2]
[323116221,1713679840083,-500.0,0.00021917,2]
[323116222,1713679840092,-500.0,0.00021917,2]
[323116223,1713679840101,-506.6926355,0.00021917,2]
[323116224,1713679840110,-204.536091,0.00021917,2]
[323116225,1713679840119,-431.90218223,0.00021917,2]
[323116226,1713679840128,-500.0,0.00021917,2]
[323116227,1713679840137,-500.0,0.00021917,2]
[323116228,1713679840146,-509.14103355,0.00021917,2]
[323116229,1713679840155,-500.0,0.00021917,2]
[323116230,1713679840164,-500.0,0.00021917,2]
[323116231,1713679840174,-508.49853926,0.00021917,2]
[323116232,1713679840183,-500.0,0.00021917,2]
[323116233,1713679840192,-882.92,0.00021917,2]
[323116234,1713679840201,-519.26136597,0.00021917,2]
[323116235,1713679840211,-1118.79,0.00021917,2]
[323116236,1713679840221,-765.32,0.00021917,2]
[323116237,1713679840230,-500.0,0.00021917,2]
[323116238,1713679840240,-500.0,0.00021917,2]
[323116239,1713679840249,-641.67088434,0.00021917,2]
[323116240,1713679840263,-500.0,0.00021917,2]
[323116242,1713679840273,-500.0,0.00021917,2]
[323116243,1713679840282,-505.72068114,0.00021917,2]
[323116244,1713679840290,-500.0,0.00021917,2]
[323116245,1713679840300,-225.0955208,0.00021917,2]
[323116246,1713679840309,-608.78420932,0.00021917,2]
[323116247,1713679840319,-506.33566977,0.00021917,2]
[323116248,1713679840328,-500.0,0.00021917,2]
[323116249,1713679840337,-508.0,0.00021917,2]
[323116250,1713679840346,-508.45515038,0.00021917,2]
[323116252,1713679840356,-973.1,0.00021917,2]
[323116253,1713679840365,-737.06,0.00021917,2]
[323116254,1713679840375,-500.0,0.00021917,2]
[323116255,1713679840384,-500.0,0.00021917,2]
[323116256,1713679840393,-500.0,0.00021917,2]
[323116257,1713679840403,-501.73691034,0.00021917,2]
[323116258,1713679840412,-1858.5,0.00021917,2]
[323116259,1713679840422,-500.0,0.00021917,2]
[323116260,1713679840431,-542.67199493,0.00021917,2]
[323116261,1713679840441,-500.0,0.00021917,2]
[323116262,1713679840453,-151.0,0.00021917,2]
[323116263,1713679840462,-151.0,0.00021917,2]
[323116264,1713679840471,-595.91,0.00021917,2]
[323116265,1713679840481,-500.0,0.00021917,2]
[323116266,1713679840490,-500.0,0.00021917,2]
[323116267,1713679840500,-500.0,0.00021917,2]
[323116268,1713679840511,-513.684479,0.00021917,2]
[323116269,1713679840523,-500.0,0.00021917,2]
[323116270,1713679840532,-500.0,0.00021917,2]
[323116271,1713679840542,-500.0,0.00021917,2]
[323116272,1713679840551,-500.0,0.00021917,2]
[323116273,1713679840560,-500.0,0.00021917,2]
[323116274,1713679840570,-2003.26,0.00021917,2]
[323116275,1713679840579,-500.0,0.00021917,2]
[323116276,1713679840588,-859.85,0.00021917,2]
[323116277,1713679840597,-151.0,0.00021917,2]
[323116278,1713679840607,-500.0,0.00021917,2]
[323116279,1713679840617,-151.0,0.00021917,2]
[323116280,1713679840626,-500.0,0.00021917,2]
[323116281,1713679840636,-1129.46,0.00021917,2]
[323116282,1713679840645,-500.0,0.00021917,2]
[323116283,1713679840654,-500.0,0.00021917,2]
[323116284,1713679840663,-195.046545,0.00021917,2]
[323116285,1713679840672,-990.09,0.00021917,2]
[323116286,1713679840682,-1755.7,0.00021917,2]
[323116287,1713679840691,-500.0,0.00021917,2]
[323116288,1713679840700,-151.0,0.00021917,2]
[323116289,1713679840710,-153.283008,0.00021917,2]
[323116290,1713679840719,-500.94637518,0.00021917,2]
[323116291,1713679840728,-502.27558915,0.00021917,2]
[323116292,1713679840737,-503.90508328,0.00021917,2]
[323116293,1713679840746,-501.30246333,0.00021917,2]
[323116294,1713679840757,-1195.65,0.00021917,2]
[323116295,1713679840767,-501.95226391,0.00021917,2]
[323116296,1713679840776,-500.0,0.00021917,2]
[323116297,1713679840785,-502.12989956,0.00021917,2]
[323116298,1713679840795,-399.150954,0.00021917,2]
[323116299,1713679840805,-399.150954,0.00021917,2]
[323116300,1713679840814,-399.150954,0.00021917,2]
[323116301,1713679840826,-399.150954,0.00021917,2]
[323116302,1713679840837,-614.88778958,0.00021917,2]
[323116303,1713679840848,-638.26830152,0.00021917,2]
[323116304,1713679840856,-5785.47,0.00021917,2]
[323116305,1713679840866,-500.0,0.00021917,2]
[323116306,1713679840875,-999.26,0.00021917,2]
[323116307,1713679840885,-500.0,0.00021917,2]
[323116308,1713679840894,-585.82,0.00021917,2]
[323116309,1713679840903,-522.16092501,0.00021917,2]
[323116310,1713679840913,-151.0,0.00021917,2]
[323116311,1713679840924,-161.110096,0.00021917,2]
[323116312,1713679840935,-500.0,0.00021917,2]
[323116313,1713679840945,-500.0,0.00021917,2]
[323116314,1713679840956,-500.0,0.00021917,2]
[323116315,1713679840966,-2343.35,0.00021917,2]
[323116316,1713679840975,-2343.35,0.00021917,2]
[323116317,1713679840984,-2343.35,0.00021917,2]
[323116318,1713679840993,-2343.35,0.00021917,2]
[323116319,1713679841002,-2343.35,0.00021917,2]
[323116320,1713679841013,-2343.35,0.00021917,2]
[323116321,1713679841022,-2343.35,0.00021917,2]
[323116322,1713679841031,-2343.35,0.00021917,2]
[323116323,1713679841040,-500.0,0.00021917,2]
[323116324,1713679841049,-2343.35,0.00021917,2]
[323116325,1713679841059,-2343.35,0.00021917,2]
[323116326,1713679841067,-2343.35,0.00021917,2]
[323116327,1713679841077,-2343.35,0.00021917,2]
[323116328,1713679841086,-166.722068,0.00021917,2]
[323116329,1713679841095,-2343.35,0.00021917,2]
[323116330,1713679841104,-166.722068,0.00021917,2]
[323116331,1713679841113,-500.0,0.00021917,2]
[323116332,1713679841123,-500.0,0.00021917,2]
[323116333,1713679841134,-500.0,0.00021917,2]
[323116334,1713679841143,-166.722068,0.00021917,2]
[323116335,1713679841152,-166.722068,0.00021917,2]
[323116336,1713679841161,-685.85,0.00021917,2]
[323116337,1713679841170,-626.07,0.00021917,2]
[323116338,1713679841179,-184.68869137,0.00021917,2]
[323116339,1713679841188,-500.0,0.00021917,2]
[323116340,1713679841198,-3553.7,0.00021917,2]
[323116341,1713679841207,-390.135278,0.00021917,2]
[323116342,1713679841215,-390.135278,0.00021917,2]
[323116343,1713679841225,-500.0,0.00021917,2]
[323116344,1713679841234,-390.135278,0.00021917,2]
[323116345,1713679841242,-390.135278,0.00021917,2]
[323116346,1713679841252,-500.0,0.00021917,2]
[323116347,1713679841263,-151.0,0.00021917,2]
[323116348,1713679841271,-151.0,0.00021917,2]
[323116349,1713679841280,-500.0,0.00021917,2]
[323116350,1713679841289,-2074.47,0.00021917,2]
[323116351,1713679841298,-500.0,0.00021917,2]
[323116352,1713679841308,-2283.51,0.00021917,2]
[323116353,1713679841317,-500.0,0.00021917,2]
[323116354,1713679841327,-501.79339691,0.00021917,2]
[323116355,1713679841336,-500.0,0.00021917,2]
[323116356,1713679841345,-500.0,0.00021917,2]
[323116357,1713679841354,-514.54320722,0.00021917,2]
[323116358,1713679841363,-3764.97,0.00021917,2]
[323116359,1713679841372,-545.24,0.00021917,2]
[323116360,1713679841380,-500.0,0.00021917,2]
[323116361,1713679841389,-847.85,0.00021917,2]
[323116362,1713679841398,-500.0,0.00021917,2]
[323116363,1713679841407,-500.0,0.00021917,2]
[323116364,1713679841417,-231.95085135,0.00021917,2]
[323116365,1713679841427,-500.0,0.00021917,2]
[323116366,1713679841439,-508.39966967,0.00021917,2]
[323116367,1713679841450,-500.0,0.00021917,2]
[323116368,1713679841461,-209.54499349,0.00021917,2]
[323116369,1713679841517,-290.45500651,0.00021917,2]
[323116370,1713679841528,-500.0,0.00021917,2]
[323116371,1713679841540,-500.0,0.00021917,2]
[323116372,1713679841550,-500.0,0.00021917,2]
[323116373,1713679841560,-117.50781681,0.00021917,2]
[323116434,1713679874771,500.0,0.00021,2]
[323116435,1713679874804,202.14658785,0.00021,2]
[323116436,1713679874838,500.0,0.00021,2]
[323116437,1713679874871,387.52893844,0.00021,2]
[323116438,1713679879732,24900.0,0.00020986,2]
[323116439,1713679887570,369.53051344,0.00019817,2]
[323116441,1713679985160,409.0,0.00024647,35]
[323116442,1713679987055,409.0,0.00024637,35]
[323116443,1713679987819,409.0,0.00024627,35]
[323116444,1713680188692,371.93483883,0.00019817,2]
[323116446,1713680285306,283.986031,0.00020305,2]
[323116447,1713680345128,287.0,0.00024373,35]
[323116448,1713680347011,287.0,0.00024363,35]
[323116449,1713680347752,287.0,0.00024353,35]
[323116450,1713680395544,168.954828,0.00019941,2]
[323116451,1713680490021,247.95655922,0.00019817,2]
[323116452,1713680556627,179.52083429,0.00020976,2]
[323116453,1713680598662,822.61466864,0.0002097,2]
[323116454,1713680615311,411.34904251,0.00020969,2]
[323116455,1713680707176,201.0,0.00024373,35]
[323116456,1713680707861,201.0,0.00024363,35]
[323116457,1713680708475,201.0,0.00024353,35]
[323116458,1713680752022,274.232695,0.00020948,2]
[323116460,1713680787571,156.73463547,0.00020936,2]
[323116461,1713680792595,156.7346354,0.00020991,2]
[323116465,1713680879796,719.78783506,0.00020925,2]
[323116466,1713680887655,182.82179668,0.00020927,2]
[323116469,1713681008212,154.84515485,0.00021,2]
[323116470,1713681008708,677.78192917,0.00021,2]
[323116471,1713681009051,154.84515485,0.00021,2]
[323116472,1713681009635,308.38118196,0.00021,2]
[323116473,1713681010321,784.31452265,0.00021,2]
[323116474,1713681013229,7863.87835467,0.00021,2]
[323116475,1713681017329,526.14121076,0.00021,2]
[323116476,1713681019304,189.12046412,0.00021,2]
[323116477,1713681019603,689.18930425,0.00021,2]
[323116478,1713681019814,1577.16491941,0.00021,2]
[323116479,1713681021095,883.42675349,0.00021,2]
[323116480,1713681023014,203.76133713,0.00021,2]
[323116481,1713681023077,1877.41559284,0.00021,2]
[323116482,1713681023442,154.84515485,0.00021,2]
[323116483,1713681024005,705.40305203,0.00021,2]
[323116484,1713681026319,193.52697819,0.00021,2]
[323116485,1713681026420,1311.22668928,0.00021,2]
[323116486,1713681028178,783.66266391,0.00020981,2]
[323116487,1713681029110,154.84515485,0.00021,2]
[323116488,1713681029736,1675.18103507,0.00021,2]
[323116489,1713681029858,241.42272,0.00021,2]
[323116490,1713681030143,1550.19478705,0.00021,2]
[323116491,1713681030716,154.84515485,0.00021,2]
[323116492,1713681031358,400.0,0.00021,2]
[323116507,1713681032429,-154.84515485,0.00021001,2]
[323116508,1713681032439,-283.22889167,0.00021001,2]
[323116510,1713681032449,-2098.69136625,0.00021001,2]
[323116512,1713681032458,-154.84515485,0.00021001,2]
[323116514,1713681032467,-154.84515485,0.00021001,2]
[323116516,1713681032477,-564.30547091,0.00021001,2]
[323116518,1713681032486,-468.2653797,0.00021001,2]
[323116520,1713681032496,-300.0,0.00021001,2]
[323116522,1713681032505,-154.84515485,0.00021001,2]
[323116536,1713681032627,-154.84515485,0.00021001,2]
[323116538,1713681032637,-247.12439728,0.00021002,2]
[323116540,1713681032647,-354.6718789,0.00021002,2]
[323116542,1713681032656,-154.84515485,0.00021002,2]
[323116544,1713681032665,-154.84515485,0.00021002,2]
[323116546,1713681032674,-539.63707301,0.00021002,2]
[323116548,1713681032683,-154.84515485,0.00021002,2]
[323116550,1713681032692,-154.84515485,0.00021002,2]
[323116552,1713681032701,-596.6050508,0.00021002,2]
[323116554,1713681032710,-154.84515485,0.00021002,2]
[323116556,1713681032719,-300.0,0.00021002,2]
[323116558,1713681032727,-622.96914813,0.00021002,2]
[323116560,1713681032736,-451.93241924,0.00021002,2]
[323116562,1713681032745,-247.73185653,0.00021002,2]
[323116564,1713681032753,-156.17455332,0.00021002,2]
[323116566,1713681032762,-505.89008151,0.00021002,2]
[323116568,1713681032771,-308.38118196,0.00021002,2]
[323116570,1713681032782,-155.5838698,0.00021002,2]
[323116572,1713681032791,-155.47435076,0.00021002,2]
[323116574,1713681032800,-4173.5052489,0.00021002,2]
[323116576,1713681032809,-194.60384712,0.00021002,2]
[323116578,1713681032818,-977.42371464,0.00021003,2]
[323116580,1713681032827,-408.71966924,0.00021003,2]
[323116582,1713681032836,-277.86971771,0.00021003,2]
[323116584,1713681032846,-471.58731213,0.00021003,2]
[323116586,1713681032855,-59135.86264102,0.00021003,2]
[323116588,1713681032868,-524.34789262,0.00021004,4]
[323116590,1713681032878,-3342.94822412,0.00021004,2]
[323116592,1713681032887,-361.87683553,0.00021004,2]
[323116594,1713681032896,-154.84515485,0.00021004,2]
[323116596,1713681032907,-154.84515485,0.00021004,2]
[323116598,1713681032917,-521.29976744,0.00021004,2]
[323116600,1713681032927,-154.84515485,0.00021004,2]
[323116602,1713681032938,-72533.62668599,0.00021004,2]
[323116604,1713681032947,-156.9712442,0.00021005,2]
[323116606,1713681032956,-154.84515485,0.00021005,2]
[323116608,1713681032965,-2586.79174796,0.00021005,2]
[323116610,1713681032975,-154.84515485,0.00021005,2]
[323116612,1713681032984,-1489.75322658,0.00021005,2]
[323116614,1713681032993,-1090.08472256,0.00021005,2]
[323116616,1713681033002,-211.98635091,0.00021005,2]
[323116618,1713681033011,-5799.27009605,0.00021006,2]
[323116620,1713681033020,-155.5724487,0.00021012,2]
[323116621,1713681033030,-377.93002717,0.00021012,2]
[323116623,1713681033039,-386.29670159,0.00021017,2]
[323116625,1713681033048,-953.51684683,0.0002103,2]
[323116627,1713681033057,-1407.02208353,0.00021037,2]
[323116629,1713681033066,-156.7346354,0.00021046,2]
[323116631,1713681033076,-156.7346354,0.00021101,2]
[323116633,1713681033085,-156.7346354,0.00021156,2]
[323116635,1713681033094,-156.7346354,0.00021211,2]
[323116637,1713681033104,-156.7346354,0.00021267,2]
[323116639,1713681033113,-2132.49179691,0.00021289,2]
[323116641,1713681033123,-156.7346354,0.00021322,2]
[323116643,1713681033132,-156.7346354,0.00021377,2]
[323116645,1713681033142,-156.7346354,0.00021432,2]
[323116647,1713681033151,-156.7346354,0.00021487,2]
[323116649,1713681033160,-153.0,0.000215,2]
[323116651,1713681033169,-156.7346354,0.00021542,2]
[323116653,1713681033179,-153.0,0.000216,2]
[323116655,1713681033188,-153.0,0.000216,2]
[323116657,1713681033197,-153.0,0.000216,2]